[Event "Titled Tuesday Blitz February 28 Late 2023"]
[White "Sebag, Marie"]
[Black "Seletsky, Grigory"]
[WhiteFideId "617822"]
[BlackFideId "14112191"]
[WhiteElo "2440"]
[BlackElo "2490"]
[Result "0-1"]
[Round "03"]
[TimeControl "180+2"]
[Date "2023.02.28"]
[WhiteClock "0:00:16"]
[BlackClock "0:00:19"]

1. e4 {[%clk 0:03:00]}  e6 {[%clk 0:02:51]} 2. d3 {[%clk 0:02:59]}  d5 {[%clk 0:02:45]} 3. Nd2 {[%clk 0:02:59]}  c5 {[%clk 0:02:46]} 4. Ngf3 {[%clk 0:02:58]}  Nc6 {[%clk 0:02:45]} 5. g3 {[%clk 0:02:58]}  Nf6 {[%clk 0:02:46]} 6. Bg2 {[%clk 0:02:58]}  Be7 {[%clk 0:02:46]} 7. O-O {[%clk 0:02:58]}  Qc7 {[%clk 0:02:46]} 8. Qe2 {[%clk 0:02:58]}  b6 {[%clk 0:02:46]} 9. Re1 {[%clk 0:02:57]}  Bb7 {[%clk 0:02:46]} 10. c3 {[%clk 0:02:56]}  O-O-O {[%clk 0:02:45]} 11. a3 {[%clk 0:02:54]}  Rdg8 {[%clk 0:02:38]} 12. b4 {[%clk 0:02:52]}  g5 {[%clk 0:02:37]} 13. bxc5 {[%clk 0:02:42]}  Bxc5 {[%clk 0:02:16]} 14. d4 {[%clk 0:02:40]}  Be7 {[%clk 0:02:14]} 15. e5 {[%clk 0:02:40]}  Nd7 {[%clk 0:02:05]} 16. Nb3 {[%clk 0:02:37]}  g4 {[%clk 0:02:00]} 17. Nfd2 {[%clk 0:02:36]}  h5 {[%clk 0:02:00]} 18. c4 {[%clk 0:02:34]}  dxc4 {[%clk 0:01:58]} 19. Qxc4 {[%clk 0:02:28]}  Kb8 {[%clk 0:01:57]} 20. Bb2 {[%clk 0:02:26]}  h4 {[%clk 0:01:54]} 21. d5 {[%clk 0:02:21]}  exd5 {[%clk 0:01:52]} 22. Bxd5 {[%clk 0:02:21]}  Rh7 {[%clk 0:01:42]} 23. Rac1 {[%clk 0:02:08]}  hxg3 {[%clk 0:01:35]} 24. fxg3 {[%clk 0:02:04]}  Nc5 {[%clk 0:01:32]} 25. Ne4 {[%clk 0:01:49]}  Nxb3 {[%clk 0:01:03]} 26. Qxb3 {[%clk 0:01:42]}  Rc8 {[%clk 0:01:01]} 27. Nd6 {[%clk 0:01:26]}  Bxd6 {[%clk 0:00:47]} 28. exd6 {[%clk 0:01:26]}  Qd7 {[%clk 0:00:39]} 29. Qc2 {[%clk 0:01:03]}  Rh6 {[%clk 0:00:36]} 30. Qf2 {[%clk 0:00:54]}  Rxd6 {[%clk 0:00:34]} 31. Bxc6 {[%clk 0:00:50]}  Rdxc6 {[%clk 0:00:32]} 32. Be5+ {[%clk 0:00:45]}  Ka8 {[%clk 0:00:30]} 33. Rcd1 {[%clk 0:00:45]}  Qe6 {[%clk 0:00:29]} 34. Bf4 {[%clk 0:00:37]}  Qg6 {[%clk 0:00:28]} 35. Rd2 {[%clk 0:00:36]}  Rc3 {[%clk 0:00:27]} 36. Red1 {[%clk 0:00:33]}  Qc6 {[%clk 0:00:27]} 37. Rd5 {[%clk 0:00:23]}  Qxd5 {[%clk 0:00:27]} 38. Rxd5 {[%clk 0:00:22]}  Bxd5 {[%clk 0:00:27]} 39. h4 {[%clk 0:00:21]}  Bf3 {[%clk 0:00:26]} 40. Qd4 {[%clk 0:00:20]}  Rc2 {[%clk 0:00:21]} 41. h5 {[%clk 0:00:19]}  Re2 {[%clk 0:00:20]} 42. h6 {[%clk 0:00:18]}  Rcc2 {[%clk 0:00:19]} 43. h7 {[%clk 0:00:16]}  Re1# {[%clk 0:00:19]} 0-1


[Site "https://www.chess.com"]

[Event "Titled Tuesday Blitz February 28 Late 2023"]
[White "Rego, Pedro Filipe"]
[Black "Saveliev, Alexei"]
[WhiteFideId "1904310"]
[BlackFideId "24128546"]
[WhiteElo "2193"]
[BlackElo "2271"]
[Result "0-1"]
[Round "03"]
[TimeControl "180+2"]
[Date "2023.02.28"]
[WhiteClock "0:00:21"]
[BlackClock "0:01:21"]

1. c4 {[%clk 0:02:59]}  g6 {[%clk 0:02:59]} 2. g3 {[%clk 0:02:58]}  Bg7 {[%clk 0:03:00]} 3. Bg2 {[%clk 0:02:59]}  d6 {[%clk 0:03:00]} 4. Nf3 {[%clk 0:03:00]}  c5 {[%clk 0:03:01]} 5. O-O {[%clk 0:03:00]}  Nc6 {[%clk 0:03:01]} 6. Nc3 {[%clk 0:03:01]}  e5 {[%clk 0:03:01]} 7. Ne1 {[%clk 0:03:00]}  f5 {[%clk 0:03:01]} 8. Nc2 {[%clk 0:02:59]}  Nf6 {[%clk 0:03:02]} 9. Ne3 {[%clk 0:02:58]}  O-O {[%clk 0:03:01]} 10. d3 {[%clk 0:02:59]}  Be6 {[%clk 0:02:59]} 11. Ned5 {[%clk 0:02:59]}  Qd7 {[%clk 0:02:59]} 12. Bg5 {[%clk 0:02:55]}  Rae8 {[%clk 0:02:59]} 13. e3 {[%clk 0:02:51]}  Nh5 {[%clk 0:02:53]} 14. f4 {[%clk 0:02:40]}  h6 {[%clk 0:02:48]} 15. Bh4 {[%clk 0:02:40]}  exf4 {[%clk 0:02:43]} 16. gxf4 {[%clk 0:02:37]}  Nf6 {[%clk 0:02:43]} 17. Qd2 {[%clk 0:02:29]}  Kh7 {[%clk 0:02:43]} 18. Rae1 {[%clk 0:02:28]}  b6 {[%clk 0:02:36]} 19. Kh1 {[%clk 0:02:24]}  Ne7 {[%clk 0:02:29]} 20. e4 {[%clk 0:02:12]}  Nc6 {[%clk 0:02:05]} 21. Bf2 {[%clk 0:01:46]}  fxe4 {[%clk 0:01:57]} 22. dxe4 {[%clk 0:01:43]}  Bh3 {[%clk 0:01:53]} 23. Bxh3 {[%clk 0:01:23]}  Qxh3 {[%clk 0:01:54]} 24. Bg3 {[%clk 0:01:24]}  Nd4 {[%clk 0:01:48]} 25. Qg2 {[%clk 0:01:19]}  Qd7 {[%clk 0:01:44]} 26. Bf2 {[%clk 0:01:08]}  Nxd5 {[%clk 0:01:43]} 27. Nxd5 {[%clk 0:01:08]}  Qf7 {[%clk 0:01:39]} 28. Bxd4 {[%clk 0:00:57]}  Bxd4 {[%clk 0:01:40]} 29. b3 {[%clk 0:00:57]}  Rg8 {[%clk 0:01:32]} 30. Rf3 {[%clk 0:00:57]}  Re6 {[%clk 0:01:27]} 31. Rg3 {[%clk 0:00:51]}  Rge8 {[%clk 0:01:27]} 32. a4 {[%clk 0:00:31]}  Qf5 {[%clk 0:01:24]} 33. Nc7 {[%clk 0:00:24]}  Rxe4 {[%clk 0:01:22]} 34. Rxe4 {[%clk 0:00:24]}  Rxe4 {[%clk 0:01:23]} 35. Qf1 {[%clk 0:00:19]}  Rxf4 {[%clk 0:01:20]} 36. Rf3 {[%clk 0:00:20]}  Rxf3 {[%clk 0:01:20]} 37. Qxf3 {[%clk 0:00:21]}  Qxf3# {[%clk 0:01:21]} 0-1


[Site "https://www.chess.com"]

[Event "Titled Tuesday Blitz February 28 Late 2023"]
[White "Dzierzak, Radoslaw"]
[Black "Klose, Eli"]
[WhiteFideId "1161407"]
[BlackFideId "16242955"]
[WhiteElo "2166"]
[BlackElo "2589"]
[Result "0-1"]
[Round "03"]
[TimeControl "180+2"]
[Date "2023.02.28"]
[WhiteClock "0:00:12"]
[BlackClock "0:00:15"]

1. e4 {[%clk 0:02:58]}  e6 {[%clk 0:03:00]} 2. Nf3 {[%clk 0:02:57]}  d5 {[%clk 0:03:00]} 3. Nc3 {[%clk 0:02:58]}  d4 {[%clk 0:03:00]} 4. Ne2 {[%clk 0:02:58]}  c5 {[%clk 0:03:00]} 5. c3 {[%clk 0:02:58]}  dxc3 {[%clk 0:03:01]} 6. bxc3 {[%clk 0:02:56]}  Nc6 {[%clk 0:03:02]} 7. Ng3 {[%clk 0:02:55]}  Nf6 {[%clk 0:03:00]} 8. d4 {[%clk 0:02:54]}  cxd4 {[%clk 0:03:00]} 9. cxd4 {[%clk 0:02:55]}  Bb4+ {[%clk 0:03:00]} 10. Bd2 {[%clk 0:02:56]}  Qa5 {[%clk 0:03:01]} 11. a3 {[%clk 0:02:52]}  Bxd2+ {[%clk 0:02:59]} 12. Qxd2 {[%clk 0:02:52]}  Qxd2+ {[%clk 0:02:59]} 13. Kxd2 {[%clk 0:02:53]}  Ke7 {[%clk 0:02:59]} 14. Bd3 {[%clk 0:02:49]}  Rd8 {[%clk 0:02:58]} 15. Ke3 {[%clk 0:02:48]}  Ng4+ {[%clk 0:02:58]} 16. Ke2 {[%clk 0:02:46]}  Nxd4+ {[%clk 0:02:57]} 17. Nxd4 {[%clk 0:02:46]}  Rxd4 {[%clk 0:02:58]} 18. f4 {[%clk 0:02:42]}  Rxd3 {[%clk 0:02:48]} 19. Kxd3 {[%clk 0:02:42]}  Nf2+ {[%clk 0:02:48]} 20. Ke3 {[%clk 0:02:35]}  Nxh1 {[%clk 0:02:49]} 21. Rxh1 {[%clk 0:02:35]}  Bd7 {[%clk 0:02:47]} 22. Rc1 {[%clk 0:02:32]}  Bc6 {[%clk 0:02:46]} 23. Ne2 {[%clk 0:02:31]}  Rc8 {[%clk 0:02:45]} 24. Nd4 {[%clk 0:02:28]}  Bd7 {[%clk 0:02:45]} 25. Rxc8 {[%clk 0:02:27]}  Bxc8 {[%clk 0:02:46]} 26. e5 {[%clk 0:02:22]}  Bd7 {[%clk 0:02:45]} 27. Nb3 {[%clk 0:02:18]}  Bc6 {[%clk 0:02:44]} 28. g3 {[%clk 0:02:18]}  Bd5 {[%clk 0:02:44]} 29. Nd4 {[%clk 0:02:09]}  Kd7 {[%clk 0:02:44]} 30. Nb5 {[%clk 0:02:09]}  a6 {[%clk 0:02:01]} 31. Nd6 {[%clk 0:02:09]}  f6 {[%clk 0:01:54]} 32. Kd4 {[%clk 0:02:07]}  b6 {[%clk 0:01:44]} 33. h4 {[%clk 0:01:58]}  Bb3 {[%clk 0:01:29]} 34. Ne4 {[%clk 0:01:44]}  Ke7 {[%clk 0:01:23]} 35. Nd6 {[%clk 0:01:34]}  Kd7 {[%clk 0:01:11]} 36. Ne4 {[%clk 0:01:32]}  f5 {[%clk 0:01:11]} 37. Ng5 {[%clk 0:01:12]}  h6 {[%clk 0:01:07]} 38. Nf7 {[%clk 0:01:11]}  Bd1 {[%clk 0:01:04]} 39. Nd6 {[%clk 0:01:05]}  Kc6 {[%clk 0:01:03]} 40. Kc4 {[%clk 0:01:04]}  Be2+ {[%clk 0:01:01]} 41. Kd4 {[%clk 0:01:05]}  Bh5 {[%clk 0:01:01]} 42. Kc4 {[%clk 0:01:04]}  Bg6 {[%clk 0:00:56]} 43. a4 {[%clk 0:00:55]}  Bh5 {[%clk 0:00:55]} 44. Kb4 {[%clk 0:00:54]}  a5+ {[%clk 0:00:51]} 45. Kb3 {[%clk 0:00:42]}  Bd1+ {[%clk 0:00:47]} 46. Ka3 {[%clk 0:00:42]}  Kd5 {[%clk 0:00:38]} 47. Nc8 {[%clk 0:00:38]}  Ke4 {[%clk 0:00:35]} 48. Nxb6 {[%clk 0:00:37]}  Kf3 {[%clk 0:00:36]} 49. Nc4 {[%clk 0:00:35]}  Kxg3 {[%clk 0:00:36]} 50. Nxa5 {[%clk 0:00:35]}  Kxf4 {[%clk 0:00:32]} 51. Nc4 {[%clk 0:00:34]}  Bxa4 {[%clk 0:00:26]} 52. Kxa4 {[%clk 0:00:34]}  g5 {[%clk 0:00:27]} 53. hxg5 {[%clk 0:00:32]}  hxg5 {[%clk 0:00:28]} 54. Kb3 {[%clk 0:00:32]}  g4 {[%clk 0:00:27]} 55. Nb2 {[%clk 0:00:18]}  g3 {[%clk 0:00:26]} 56. Nd3+ {[%clk 0:00:18]}  Ke3 {[%clk 0:00:26]} 57. Ne1 {[%clk 0:00:18]}  Ke2 {[%clk 0:00:21]} 58. Ng2 {[%clk 0:00:17]}  Kf2 {[%clk 0:00:21]} 59. Nf4 {[%clk 0:00:13]}  g2 {[%clk 0:00:22]} 60. Nh3+ {[%clk 0:00:13]}  Kf1 {[%clk 0:00:20]} 61. Kc3 {[%clk 0:00:13]}  g1=Q {[%clk 0:00:20]} 62. Nxg1 {[%clk 0:00:13]}  Kxg1 {[%clk 0:00:21]} 63. Kd4 {[%clk 0:00:13]}  Kg2 {[%clk 0:00:22]} 64. Kc5 {[%clk 0:00:14]}  f4 {[%clk 0:00:21]} 65. Kd6 {[%clk 0:00:15]}  f3 {[%clk 0:00:22]} 66. Kxe6 {[%clk 0:00:15]}  f2 {[%clk 0:00:23]} 67. Kd7 {[%clk 0:00:15]}  f1=Q {[%clk 0:00:23]} 68. e6 {[%clk 0:00:16]}  Qd3+ {[%clk 0:00:23]} 69. Ke8 {[%clk 0:00:15]}  Qg6+ {[%clk 0:00:23]} 70. Kd7 {[%clk 0:00:15]}  Qf5 {[%clk 0:00:21]} 71. Kd6 {[%clk 0:00:12]}  Qd3+ {[%clk 0:00:17]} 72. Kc7 {[%clk 0:00:12]}  Qe4 {[%clk 0:00:15]} 73. Kd7 {[%clk 0:00:11]}  Qd5+ {[%clk 0:00:15]} 74. Ke7 {[%clk 0:00:12]}  Kf3 {[%clk 0:00:15]} 75. Kf7 {[%clk 0:00:12]} 0-1


[Site "https://www.chess.com"]

[Event "Titled Tuesday Blitz February 28 Late 2023"]
[White "Colas, Joshua"]
[Black "Slade, Theodore"]
[WhiteFideId "2044447"]
[BlackFideId "426547"]
[WhiteElo "2347"]
[BlackElo "1964"]
[Result "1-0"]
[Round "03"]
[TimeControl "180+2"]
[Date "2023.02.28"]
[WhiteClock "0:00:31"]
[BlackClock "0:00:07"]

1. c4 {[%clk 0:02:45]}  e6 {[%clk 0:03:00]} 2. Nf3 {[%clk 0:02:46]}  d5 {[%clk 0:03:00]} 3. g3 {[%clk 0:02:46]}  Nf6 {[%clk 0:03:01]} 4. Bg2 {[%clk 0:02:47]}  Be7 {[%clk 0:03:01]} 5. O-O {[%clk 0:02:48]}  O-O {[%clk 0:03:02]} 6. b3 {[%clk 0:02:48]}  d4 {[%clk 0:03:01]} 7. e3 {[%clk 0:02:43]}  c5 {[%clk 0:03:02]} 8. exd4 {[%clk 0:02:44]}  cxd4 {[%clk 0:03:03]} 9. Ne5 {[%clk 0:02:31]}  Nfd7 {[%clk 0:03:02]} 10. Nxd7 {[%clk 0:02:29]}  Nxd7 {[%clk 0:02:56]} 11. d3 {[%clk 0:02:26]}  e5 {[%clk 0:02:56]} 12. Ba3 {[%clk 0:02:26]}  Bxa3 {[%clk 0:02:52]} 13. Nxa3 {[%clk 0:02:27]}  Nc5 {[%clk 0:02:50]} 14. b4 {[%clk 0:02:24]}  Ne6 {[%clk 0:02:41]} 15. Re1 {[%clk 0:02:25]}  Qc7 {[%clk 0:02:36]} 16. Nb5 {[%clk 0:02:14]}  Qb8 {[%clk 0:02:36]} 17. c5 {[%clk 0:02:15]}  a5 {[%clk 0:02:09]} 18. a3 {[%clk 0:02:12]}  axb4 {[%clk 0:02:10]} 19. axb4 {[%clk 0:02:12]}  Rxa1 {[%clk 0:02:10]} 20. Qxa1 {[%clk 0:02:13]}  f6 {[%clk 0:01:53]} 21. Nd6 {[%clk 0:02:04]}  b6 {[%clk 0:01:49]} 22. Qa2 {[%clk 0:01:47]}  bxc5 {[%clk 0:01:36]} 23. Nxc8 {[%clk 0:01:13]}  Qxc8 {[%clk 0:01:37]} 24. Bd5 {[%clk 0:01:13]}  Kf7 {[%clk 0:01:36]} 25. Rc1 {[%clk 0:00:59]}  Re8 {[%clk 0:01:31]} 26. Rxc5 {[%clk 0:00:57]}  Qb8 {[%clk 0:01:26]} 27. Rc6 {[%clk 0:00:53]}  Qxb4 {[%clk 0:01:20]} 28. Rxe6 {[%clk 0:00:50]}  Rxe6 {[%clk 0:01:16]} 29. Bxe6+ {[%clk 0:00:51]}  Ke7 {[%clk 0:01:13]} 30. Bc4 {[%clk 0:00:49]}  Qb7 {[%clk 0:01:04]} 31. Qa3+ {[%clk 0:00:44]}  Ke8 {[%clk 0:01:04]} 32. Qd6 {[%clk 0:00:44]}  Qe7 {[%clk 0:00:54]} 33. Qxe7+ {[%clk 0:00:44]}  Kxe7 {[%clk 0:00:54]} 34. f4 {[%clk 0:00:45]}  exf4 {[%clk 0:00:17]} 35. gxf4 {[%clk 0:00:44]}  f5 {[%clk 0:00:18]} 36. Kf2 {[%clk 0:00:41]}  h6 {[%clk 0:00:17]} 37. h4 {[%clk 0:00:40]}  g6 {[%clk 0:00:17]} 38. h5 {[%clk 0:00:38]}  g5 {[%clk 0:00:12]} 39. Kf3 {[%clk 0:00:35]}  Kf6 {[%clk 0:00:11]} 40. Ba6 {[%clk 0:00:32]}  Ke7 {[%clk 0:00:11]} 41. Bc8 {[%clk 0:00:31]}  Kf6 {[%clk 0:00:11]} 42. Bd7 {[%clk 0:00:31]}  g4+ {[%clk 0:00:07]} 43. Kg3 {[%clk 0:00:31]} 1-0


[Site "https://www.chess.com"]

[Event "Titled Tuesday Blitz February 28 Late 2023"]
[White "Tyagi, Kushan"]
[Black "Yurovskykh, Oleksandr"]
[WhiteFideId "2040069"]
[BlackFideId "14134020"]
[WhiteElo "2343"]
[BlackElo "2268"]
[Result "1-0"]
[Round "03"]
[TimeControl "180+2"]
[Date "2023.02.28"]
[WhiteClock "0:00:23"]
[BlackClock "0:00:11"]

1. d4 {[%clk 0:03:00]}  d5 {[%clk 0:02:57]} 2. c4 {[%clk 0:03:01]}  dxc4 {[%clk 0:02:51]} 3. Nf3 {[%clk 0:03:01]}  Nf6 {[%clk 0:02:51]} 4. e3 {[%clk 0:03:01]}  e6 {[%clk 0:02:51]} 5. Bxc4 {[%clk 0:03:01]}  c5 {[%clk 0:02:52]} 6. O-O {[%clk 0:03:01]}  Nc6 {[%clk 0:02:53]} 7. Nc3 {[%clk 0:03:00]}  cxd4 {[%clk 0:02:53]} 8. exd4 {[%clk 0:03:00]}  Be7 {[%clk 0:02:54]} 9. Bg5 {[%clk 0:02:55]}  O-O {[%clk 0:02:54]} 10. Re1 {[%clk 0:02:49]}  b6 {[%clk 0:02:52]} 11. Rc1 {[%clk 0:02:47]}  Bb7 {[%clk 0:02:51]} 12. Bb3 {[%clk 0:02:39]}  Nb4 {[%clk 0:02:48]} 13. a3 {[%clk 0:02:37]}  Nbd5 {[%clk 0:02:46]} 14. Bc2 {[%clk 0:02:35]}  Nxc3 {[%clk 0:02:42]} 15. bxc3 {[%clk 0:02:33]}  Bxa3 {[%clk 0:02:39]} 16. Qd3 {[%clk 0:02:32]}  g6 {[%clk 0:02:30]} 17. Rcd1 {[%clk 0:02:16]}  Be7 {[%clk 0:02:29]} 18. Ne5 {[%clk 0:02:08]}  Rc8 {[%clk 0:02:12]} 19. Qh3 {[%clk 0:01:53]}  Bd5 {[%clk 0:01:23]} 20. Re3 {[%clk 0:01:50]}  Nd7 {[%clk 0:01:17]} 21. Bh6 {[%clk 0:01:19]}  Bg5 {[%clk 0:01:12]} 22. Bxg5 {[%clk 0:01:13]}  Qxg5 {[%clk 0:01:13]} 23. Nxd7 {[%clk 0:01:13]}  Rfd8 {[%clk 0:01:04]} 24. Ne5 {[%clk 0:01:13]}  a5 {[%clk 0:00:55]} 25. f4 {[%clk 0:01:07]}  Qf6 {[%clk 0:00:51]} 26. Qh6 {[%clk 0:01:05]}  b5 {[%clk 0:00:41]} 27. Rb1 {[%clk 0:01:00]}  Rb8 {[%clk 0:00:40]} 28. Rh3 {[%clk 0:00:55]}  Qg7 {[%clk 0:00:40]} 29. Qxg7+ {[%clk 0:00:52]}  Kxg7 {[%clk 0:00:41]} 30. Re3 {[%clk 0:00:49]}  Rb7 {[%clk 0:00:38]} 31. Be4 {[%clk 0:00:44]}  Bxe4 {[%clk 0:00:33]} 32. Rxe4 {[%clk 0:00:45]}  Rc8 {[%clk 0:00:34]} 33. Re3 {[%clk 0:00:44]}  a4 {[%clk 0:00:32]} 34. Kf2 {[%clk 0:00:40]}  a3 {[%clk 0:00:30]} 35. Ra1 {[%clk 0:00:39]}  Ra7 {[%clk 0:00:29]} 36. Ra2 {[%clk 0:00:39]}  f6 {[%clk 0:00:25]} 37. Nf3 {[%clk 0:00:37]}  Kf7 {[%clk 0:00:26]} 38. Ne1 {[%clk 0:00:36]}  Rc4 {[%clk 0:00:18]} 39. Nc2 {[%clk 0:00:35]}  Rca4 {[%clk 0:00:18]} 40. Nb4 {[%clk 0:00:33]}  Ra8 {[%clk 0:00:16]} 41. Ke2 {[%clk 0:00:33]}  Ke7 {[%clk 0:00:17]} 42. Kd3 {[%clk 0:00:33]}  Kd6 {[%clk 0:00:17]} 43. Re1 {[%clk 0:00:33]}  R8a7 {[%clk 0:00:16]} 44. Rea1 {[%clk 0:00:33]}  Ra8 {[%clk 0:00:16]} 45. Nc2 {[%clk 0:00:33]}  Rc8 {[%clk 0:00:16]} 46. Rxa3 {[%clk 0:00:33]}  Rac4 {[%clk 0:00:15]} 47. Rb3 {[%clk 0:00:32]}  g5 {[%clk 0:00:15]} 48. Ra6+ {[%clk 0:00:32]}  Ke7 {[%clk 0:00:15]} 49. Ra7+ {[%clk 0:00:27]}  Kf8 {[%clk 0:00:15]} 50. fxg5 {[%clk 0:00:27]}  fxg5 {[%clk 0:00:16]} 51. Rxh7 {[%clk 0:00:27]}  e5 {[%clk 0:00:13]} 52. Ne3 {[%clk 0:00:25]}  exd4 {[%clk 0:00:12]} 53. cxd4 {[%clk 0:00:23]}  Rc1 {[%clk 0:00:11]} 54. Rh8+ {[%clk 0:00:23]}  Kg7 {[%clk 0:00:11]} 55. Rxc8 {[%clk 0:00:24]}  Rxc8 {[%clk 0:00:11]} 56. Rxb5 {[%clk 0:00:23]} 1-0


[Site "https://www.chess.com"]

[Event "Titled Tuesday Blitz February 28 Late 2023"]
[White "Escalante Ramirez, Rafael"]
[Black "Schekachikhin, Maksim"]
[WhiteFideId "3900177"]
[BlackFideId "24177830"]
[WhiteElo "2321"]
[BlackElo "2272"]
[Result "1-0"]
[Round "03"]
[TimeControl "180+2"]
[Date "2023.02.28"]
[WhiteClock "0:00:22"]
[BlackClock "0:00:03"]

1. Nf3 {[%clk 0:03:00]}  Nf6 {[%clk 0:02:56]} 2. d4 {[%clk 0:03:00]}  b6 {[%clk 0:02:54]} 3. c4 {[%clk 0:02:57]}  Bb7 {[%clk 0:02:54]} 4. g3 {[%clk 0:02:57]}  g6 {[%clk 0:02:53]} 5. Bg2 {[%clk 0:02:57]}  Bg7 {[%clk 0:02:54]} 6. O-O {[%clk 0:02:57]}  O-O {[%clk 0:02:54]} 7. Nc3 {[%clk 0:02:56]}  Ne4 {[%clk 0:02:54]} 8. Qc2 {[%clk 0:02:47]}  Nxc3 {[%clk 0:02:27]} 9. Qxc3 {[%clk 0:02:48]}  Be4 {[%clk 0:02:26]} 10. b3 {[%clk 0:02:36]}  d6 {[%clk 0:02:25]} 11. Bb2 {[%clk 0:02:36]}  Nd7 {[%clk 0:02:24]} 12. Rad1 {[%clk 0:02:31]}  a5 {[%clk 0:02:15]} 13. Qd2 {[%clk 0:02:27]}  Qc8 {[%clk 0:02:07]} 14. d5 {[%clk 0:02:25]}  Bxb2 {[%clk 0:02:02]} 15. Qxb2 {[%clk 0:02:26]}  Bxf3 {[%clk 0:02:02]} 16. Bxf3 {[%clk 0:02:07]}  Nc5 {[%clk 0:02:01]} 17. Kg2 {[%clk 0:01:59]}  Qf5 {[%clk 0:01:56]} 18. h3 {[%clk 0:01:51]}  Rfb8 {[%clk 0:01:53]} 19. Rd4 {[%clk 0:01:40]}  Qf6 {[%clk 0:01:47]} 20. Qd2 {[%clk 0:01:38]}  b5 {[%clk 0:01:45]} 21. cxb5 {[%clk 0:01:31]}  Rxb5 {[%clk 0:01:46]} 22. Rc1 {[%clk 0:01:20]}  Rab8 {[%clk 0:01:06]} 23. h4 {[%clk 0:01:13]}  Rxb3 {[%clk 0:00:52]} 24. Rf4 {[%clk 0:00:32]}  Qb2 {[%clk 0:00:44]} 25. Rc2 {[%clk 0:00:32]}  Qxc2 {[%clk 0:00:33]} 26. Qxc2 {[%clk 0:00:31]}  Rb2 {[%clk 0:00:33]} 27. Qc4 {[%clk 0:00:29]}  R8b4 {[%clk 0:00:29]} 28. Qc3 {[%clk 0:00:24]}  Rxf4 {[%clk 0:00:25]} 29. gxf4 {[%clk 0:00:25]}  Rxa2 {[%clk 0:00:03]} 30. h5 {[%clk 0:00:22]} 1-0


[Site "https://www.chess.com"]

[Event "Titled Tuesday Blitz February 28 Late 2023"]
[White "Gascon Del Nogal, Jose Rafael"]
[Black "Paspuel, Trosky"]
[WhiteFideId "3902463"]
[BlackFideId "3602150"]
[WhiteElo "2473"]
[BlackElo "2317"]
[Result "1-0"]
[Round "03"]
[TimeControl "180+2"]
[Date "2023.02.28"]
[WhiteClock "0:02:39"]
[BlackClock "0:02:18"]

1. Nf3 {[%clk 0:03:00]}  Nf6 {[%clk 0:02:58]} 2. c4 {[%clk 0:02:59]}  e6 {[%clk 0:02:58]} 3. g3 {[%clk 0:02:59]}  d5 {[%clk 0:02:59]} 4. Bg2 {[%clk 0:03:00]}  d4 {[%clk 0:02:58]} 5. d3 {[%clk 0:02:56]}  c5 {[%clk 0:02:58]} 6. e4 {[%clk 0:02:56]}  Nc6 {[%clk 0:02:52]} 7. e5 {[%clk 0:02:55]}  Nd7 {[%clk 0:02:45]} 8. Qe2 {[%clk 0:02:51]}  Qc7 {[%clk 0:02:44]} 9. Bf4 {[%clk 0:02:50]}  g5 {[%clk 0:02:36]} 10. Bxg5 {[%clk 0:02:47]}  Ndxe5 {[%clk 0:02:34]} 11. Nxe5 {[%clk 0:02:47]}  Qxe5 {[%clk 0:02:18]} 12. Bxc6+ {[%clk 0:02:39]}  bxc6 {[%clk 0:02:18]} 13. Qxe5 {[%clk 0:02:39]} 1-0


[Site "https://www.chess.com"]